fUST/lending_fUST_20250508
["ID","MTS","AMOUNT","RATE_DAILY","PERIOD"]
[360287986,1746711034457,-400.0,0.00010958,2]
[360287987,1746711034468,-400.0,0.00010958,2]
[360287988,1746711034478,-400.0,0.00010958,2]
[360287989,1746711034488,-400.0,0.00010958,2]
[360287990,1746711034498,-400.85583565,0.00010958,2]
[360287991,1746711034508,-400.0,0.00010958,2]
[360287992,1746711034518,-400.0,0.00010958,2]
[360287993,1746711034527,-400.0,0.00010958,2]
[360287994,1746711034537,-407.0518735,0.00010958,2]
[360287995,1746711034546,-400.0,0.00010958,2]
[360287996,1746711034556,-435.47979179,0.00010958,2]
[360287997,1746711034566,-400.0,0.00010958,2]
[360287998,1746711034575,-417.32963599,0.00010958,2]
[360287999,1746711034585,-400.0,0.00010958,2]
[360288000,1746711034595,-400.0,0.00010958,2]
[360288001,1746711034605,-514.57,0.00010958,2]
[360288002,1746711034615,-425.27,0.00010958,2]
[360288003,1746711034625,-400.0,0.00010958,2]
[360288004,1746711034635,-400.0,0.00010958,2]
[360288005,1746711034644,-462.51,0.00010958,2]
[360288006,1746711034654,-400.0,0.00010958,2]
[360288007,1746711034663,-400.0,0.00010958,2]
[360288008,1746711034673,-400.0,0.00010958,2]
[360288009,1746711034683,-400.0,0.00010958,2]
[360288010,1746711034692,-400.0,0.00010958,2]
[360288011,1746711034702,-434.42,0.00010958,2]
[360288012,1746711034711,-511.19,0.00010958,2]
[360288013,1746711034720,-400.0,0.00010958,2]
[360288014,1746711034730,-400.0,0.00010958,2]
[360288015,1746711034740,-400.0,0.00010958,2]
[360288016,1746711034750,-400.0,0.00010958,2]
[360288017,1746711034760,-400.0,0.00010958,2]
[360288018,1746711034930,-500.0,0.00010958,2]
[360288019,1746711034940,-500.0,0.00010958,2]
[360288020,1746711034951,-400.0,0.00010958,2]
[360288021,1746711034961,-400.0,0.00010958,2]
[360288022,1746711034971,-500.0,0.00010958,2]
[360288023,1746711034982,-400.0,0.00010958,2]
[360288024,1746711034991,-508.88109064,0.00010958,2]
[360288025,1746711035002,-403.60401902,0.00010958,2]
[360288026,1746711035011,-400.0,0.00010958,2]
[360288027,1746711035021,-403.51737354,0.00010958,2]
[360288028,1746711035030,-400.0,0.00010958,2]
[360288029,1746711035041,-400.0,0.00010958,2]
[360288030,1746711035052,-478.83,0.00010958,2]
[360288031,1746711035062,-400.0,0.00010958,2]
[360288032,1746711035074,-410.89449733,0.00010958,2]
[360288033,1746711035083,-400.0,0.00010958,2]
[360288034,1746711035093,-400.0,0.00010958,2]
[360288035,1746711035104,-400.0,0.00010958,2]
[360288036,1746711035114,-402.82415832,0.00010958,2]
[360288037,1746711035123,-400.0,0.00010958,2]
[360288038,1746711035132,-400.0,0.00010958,2]
[360288039,1746711035142,-400.58757107,0.00010958,2]
[360288040,1746711035151,-400.0,0.00010958,2]
[360288041,1746711035161,-400.0,0.00010958,2]
[360288042,1746711035170,-400.0,0.00010958,2]
[360288043,1746711035179,-400.0,0.00010958,2]
[360288044,1746711035188,-400.0,0.00010958,2]
[360288045,1746711035198,-400.0,0.00010958,2]
[360288046,1746711035208,-400.0,0.00010958,2]
[360288047,1746711035218,-400.0,0.00010958,2]
[360288048,1746711035229,-400.0,0.00010958,2]
[360288049,1746711035239,-400.0,0.00010958,2]
[360288050,1746711035248,-400.0,0.00010958,2]
[360288051,1746711035258,-544.2,0.00010958,2]
[360288052,1746711035269,-453.36,0.00010958,2]
[360288053,1746711035279,-400.0,0.00010958,2]
[360288054,1746711035290,-400.0,0.00010958,2]
[360288055,1746711035301,-333.01240653,0.00010958,2]
[360288056,1746711035312,-400.0,0.00010958,2]
[360288057,1746711035324,-400.0,0.00010958,2]
[360288058,1746711035333,-405.25870405,0.00010958,2]
[360288059,1746711035343,-400.0,0.00010958,2]
[360288060,1746711035353,-175.03426614,0.00010958,2]
[360288061,1746711035362,-400.0,0.00010958,2]
[360288062,1746711035373,-404.45956307,0.00010958,2]
[360288063,1746711035384,-400.0,0.00010958,2]
[360288064,1746711035394,-400.0,0.00010958,2]
[360288065,1746711035403,-400.0,0.00010958,2]
[360288066,1746711035412,-400.0,0.00010958,2]
[360288067,1746711035421,-420.75859043,0.00010958,2]
[360288068,1746711035431,-511.6410463,0.00010958,2]
[360288069,1746711035440,-505.5,0.00010958,2]
[360288070,1746711035449,-400.0,0.00010958,2]
[360288071,1746711035459,-400.0,0.00010958,2]
[360288072,1746711035469,-400.0,0.00010958,2]
[360288073,1746711035478,-503.11882756,0.00010958,2]
[360288074,1746711035487,-546.85566678,0.00010958,2]
[360288075,1746711035497,-400.0,0.00010958,2]
[360288076,1746711035507,-400.0,0.00010958,2]
[360288077,1746711035516,-400.0,0.00010958,2]
[360288078,1746711035525,-400.0,0.00010958,2]
[360288079,1746711035537,-400.0,0.00010958,2]
[360288080,1746711035546,-400.82850871,0.00010958,2]
[360288081,1746711035555,-400.0,0.00010958,2]
[360288082,1746711035566,-400.0,0.00010958,2]
[360288083,1746711035577,-400.0,0.00010958,2]
[360288084,1746711035587,-400.0,0.00010958,2]
[360288085,1746711035596,-400.0,0.00010958,2]
[360288086,1746711035606,-404.93726531,0.00010958,2]
[360288087,1746711035615,-400.0,0.00010958,2]
[360288088,1746711035625,-400.0,0.00010958,2]
[360288089,1746711035634,-402.93833678,0.00010958,2]
[360288090,1746711035644,-471.33829854,0.00010958,2]
[360288091,1746711035653,-400.0,0.00010958,2]
[360288092,1746711035663,-500.0,0.00010958,2]
[360288093,1746711035672,-400.0,0.00010958,2]
[360288094,1746711035683,-520.62986185,0.00010958,2]
[360288095,1746711035692,-400.0,0.00010958,2]
[360288096,1746711035702,-400.0,0.00010958,2]
[360288097,1746711035711,-400.0,0.00010958,2]
[360288098,1746711035721,-400.0,0.00010958,2]
[360288099,1746711035731,-405.46985409,0.00010958,2]
[360288100,1746711035741,-400.0,0.00010958,2]
[360288101,1746711035750,-523.26732313,0.00010958,2]
[360288102,1746711035760,-400.0,0.00010958,2]
[360288103,1746711035770,-401.34566695,0.00010958,2]
[360288104,1746711035780,-400.0,0.00010958,2]
[360288105,1746711035789,-400.0,0.00010958,2]
[360288106,1746711035798,-404.79314062,0.00010958,2]
[360288107,1746711035810,-400.0,0.00010958,2]
[360288108,1746711035820,-400.0,0.00010958,2]
[360288109,1746711035830,-400.0,0.00010958,2]
[360288110,1746711035840,-400.0,0.00010958,2]
[360288111,1746711035849,-400.0,0.00010958,2]
[360288112,1746711035858,-400.0,0.00010958,2]
[360288113,1746711035868,-300.0,0.00010958,2]
[360288115,1746711035877,-400.0,0.00010958,2]
[360288116,1746711035887,-400.0,0.00010958,2]
[360288117,1746711035895,-542.09,0.00010958,2]
[360288118,1746711035905,-400.0,0.00010958,2]
[360288119,1746711035915,-400.0,0.00010958,2]
[360288121,1746711035924,-400.0,0.00010958,2]
[360288122,1746711035937,-400.0,0.00010958,2]
[360288123,1746711035946,-400.0,0.00010958,2]
[360288124,1746711035956,-400.0,0.00010958,2]
[360288125,1746711035965,-400.0,0.00010958,2]
[360288126,1746711035975,-404.34130957,0.00010958,2]
[360288127,1746711035984,-400.0,0.00010958,2]
[360288128,1746711035995,-297.14368893,0.00010958,2]
[360288129,1746711036006,-400.0,0.00010958,2]
[360288130,1746711036015,-405.48664662,0.00010958,2]
[360288131,1746711036025,-400.0,0.00010958,2]
[360288132,1746711036034,-400.0,0.00010958,2]
[360288133,1746711036043,-400.0,0.00010958,2]
[360288134,1746711036052,-400.0,0.00010958,2]
[360288135,1746711036062,-400.0,0.00010958,2]
[360288136,1746711036071,-400.0,0.00010958,2]
[360288137,1746711036081,-400.0,0.00010958,2]
[360288138,1746711036090,-400.0,0.00010958,2]
[360288139,1746711036099,-400.0,0.00010958,2]
[360288140,1746711036109,-400.0,0.00010958,2]
[360288141,1746711036118,-400.0,0.00010958,2]
[360288142,1746711036127,-155.84348606,0.00010958,2]
[360288143,1746711036136,-400.0,0.00010958,2]
[360288144,1746711036148,-400.0,0.00010958,2]
[360288145,1746711036157,-403.89690164,0.00010958,2]
[360288146,1746711036166,-413.52254433,0.00010958,2]
[360288147,1746711036176,-404.98525521,0.00010958,2]
[360288148,1746711036187,-404.10281883,0.00010958,2]
[360288149,1746711036199,-227.19611969,0.00010958,2]
[360288150,1746711036210,-400.0,0.00010958,2]
[360288151,1746711036220,-400.0,0.00010958,2]
[360288152,1746711036231,-400.6029986,0.00010958,2]
[360288153,1746711036242,-400.0,0.00010958,2]
[360288154,1746711036252,-400.0,0.00010958,2]
[360288155,1746711036261,-400.0,0.00010958,2]
[360288156,1746711036270,-400.21061433,0.00010958,2]
[360288157,1746711036279,-400.0,0.00010958,2]
[360288158,1746711036288,-400.0,0.00010958,2]
[360288159,1746711036298,-417.32597124,0.00010958,2]
[360288160,1746711036310,-400.0,0.00010958,2]
[360288161,1746711036320,-400.0,0.00010958,2]
[360288162,1746711036329,-406.38254705,0.00010958,2]
[360288163,1746711036338,-404.52442808,0.00010958,2]
[360288164,1746711036347,-400.0,0.00010958,2]
[360288165,1746711036356,-400.0,0.00010958,2]
[360288166,1746711036366,-400.0,0.00010958,2]
[360288167,1746711036376,-400.0,0.00010958,2]
[360288168,1746711036386,-400.0,0.00010958,2]
[360288169,1746711036396,-400.0,0.00010958,2]
[360288170,1746711036405,-400.0,0.00010958,2]
[360288171,1746711036415,-400.0,0.00010958,2]
[360288172,1746711036424,-400.0,0.00010958,2]
[360288173,1746711036434,-540.38,0.00010958,2]
[360288174,1746711036444,-400.0,0.00010958,2]
[360288175,1746711036454,-400.0,0.00010958,2]
[360288176,1746711036463,-400.0,0.00010958,2]
[360288177,1746711036472,-500.0,0.00010958,2]
[360288178,1746711036482,-400.0,0.00010958,2]
[360288179,1746711036493,-400.0,0.00010958,2]
[360288180,1746711036502,-400.0,0.00010958,2]
[360288181,1746711036513,-400.0,0.00010958,2]
[360288182,1746711036523,-400.0,0.00010958,2]
[360288183,1746711036533,-189.18676356,0.00010958,2]
[360288184,1746711036543,-400.0,0.00010958,2]
[360288185,1746711036553,-400.0,0.00010958,2]
[360288186,1746711036562,-400.0,0.00010958,2]
[360288187,1746711036572,-400.0,0.00010958,2]
[360288188,1746711036582,-400.0,0.00010958,2]
[360288189,1746711036591,-400.0,0.00010958,2]
[360288190,1746711036602,-400.0,0.00010958,2]
[360288191,1746711036611,-400.0,0.00010958,2]
[360288192,1746711036622,-412.90726713,0.00010958,2]
[360288193,1746711036632,-400.0,0.00010958,2]
[360288194,1746711036641,-400.0,0.00010958,2]
[360288195,1746711036651,-400.0,0.00010958,2]
[360288196,1746711036661,-400.0,0.00010958,2]
[360288197,1746711036670,-400.0,0.00010958,2]
[360288198,1746711036680,-400.0,0.00010958,2]
[360288199,1746711036690,-404.78977155,0.00010958,2]
[360288200,1746711036699,-400.0,0.00010958,2]
[360288201,1746711036708,-400.0,0.00010958,2]
[360288202,1746711036718,-400.0,0.00010958,2]
[360288203,1746711036728,-426.55,0.00010958,2]
[360288204,1746711036738,-400.0,0.00010958,2]
[360288205,1746711036749,-400.0,0.00010958,2]
[360288206,1746711036758,-400.0,0.00010958,2]
[360288207,1746711036768,-400.0,0.00010958,2]
[360288208,1746711036778,-488.82,0.00010958,2]
[360288209,1746711036787,-400.0,0.00010958,2]
[360288210,1746711036797,-400.0,0.00010958,2]
[360288211,1746711036807,-400.0,0.00010958,2]
[360288212,1746711036817,-400.0,0.00010958,2]
[360288213,1746711036826,-400.0,0.00010958,2]
[360288214,1746711036836,-400.0,0.00010958,2]
[360288215,1746711036847,-400.0,0.00010958,2]
[360288216,1746711036856,-500.0,0.00010959,2]
[360288217,1746711036866,-500.0,0.00010959,2]
[360288218,1746711036876,-500.0,0.00010959,2]
[360288219,1746711036885,-500.0,0.00010959,2]
[360288220,1746711036894,-500.0,0.00010959,2]
[360288221,1746711036904,-500.0,0.00010959,2]
[360288222,1746711036913,-500.0,0.00010959,2]
[360288223,1746711036923,-500.0,0.00010959,2]
[360288224,1746711036936,-500.0,0.00010959,2]
[360288225,1746711036945,-500.0,0.00010959,2]
[360288226,1746711036954,-500.0,0.00010959,2]
[360288227,1746711036963,-500.0,0.00010959,2]
[360288228,1746711036972,-500.0,0.00010959,2]
[360288229,1746711036981,-500.0,0.00010959,2]
[360288230,1746711036991,-500.0,0.00010959,2]
[360288231,1746711037000,-500.0,0.00010959,2]
[360288232,1746711037009,-500.0,0.00010959,2]
[360288233,1746711037018,-500.0,0.00010959,2]
[360288234,1746711037027,-500.0,0.00010959,2]
[360288235,1746711037037,-500.0,0.00010959,2]
[360288236,1746711037047,-500.0,0.00010959,2]
[360288237,1746711037056,-500.0,0.00010959,2]
[360288238,1746711037065,-181.21436195,0.00010959,2]
[360288239,1746711037074,-500.0,0.00010959,2]
[360288240,1746711037084,-500.0,0.00010959,2]
[360288241,1746711037093,-500.0,0.00010959,2]
[360288242,1746711037103,-500.0,0.00010959,2]
[360288243,1746711037113,-500.0,0.00010959,2]
[360288244,1746711037123,-500.0,0.00010959,2]
[360288245,1746711037132,-500.0,0.00010959,2]
[360288246,1746711037142,-500.0,0.00010959,2]
[360288247,1746711037151,-500.0,0.00010959,2]
[360288248,1746711037160,-500.0,0.00010959,2]
[360288249,1746711037169,-500.0,0.00010959,2]
[360288250,1746711037178,-500.0,0.00010959,2]
[360288251,1746711037187,-500.0,0.00010959,2]
[360288252,1746711037196,-500.0,0.00010959,2]
[360288253,1746711037206,-500.0,0.00010959,2]
[360288254,1746711037214,-500.0,0.00010959,2]
[360288255,1746711037225,-500.0,0.00010959,2]
[360288256,1746711037234,-500.0,0.00010959,2]
[360288257,1746711037244,-265.0,0.00010959,2]
[360288258,1746711037253,-500.0,0.00010959,2]
[360288259,1746711037262,-500.0,0.00010959,2]
[360288260,1746711037272,-500.0,0.00010959,2]
[360288261,1746711037282,-156.57726705,0.00010959,2]
[360288262,1746711037305,-343.42273295,0.00010959,2]
[360288263,1746711037316,-500.0,0.00010959,2]
[360288264,1746711037325,-303.28315493,0.00010961,2]
[360288265,1746711037335,-500.0,0.00010973,2]
[360288266,1746711037344,-303.28315493,0.00011047,2]
[360288267,1746711037354,-303.28315493,0.00011132,2]
[360288268,1746711037363,-500.0,0.00011159,2]
[360288269,1746711037372,-500.0,0.0001116,2]
[360288270,1746711037382,-500.0,0.0001116,2]
[360288271,1746711037391,-500.0,0.0001116,2]
[360288272,1746711037401,-500.0,0.0001116,2]
[360288273,1746711037410,-500.0,0.0001116,2]
[360288274,1746711037419,-500.0,0.0001116,2]
[360288275,1746711037428,-271.21358109,0.0001116,2]
[360288276,1746711037438,-500.0,0.0001116,2]
[360288277,1746711037447,-500.0,0.0001116,2]
[360288278,1746711037456,-500.0,0.00011166,2]
[360288279,1746711037466,-500.0,0.00011166,2]
[360288280,1746711037475,-271.84811828,0.0001117,2]
[360288281,1746711037484,-500.0,0.0001117,2]
[360288282,1746711037495,-500.0,0.00011176,2]
[360288283,1746711037505,-500.0,0.00011182,2]
[360288284,1746711037515,-500.0,0.00011204,2]
[360288285,1746711037524,-500.0,0.00011204,2]
[360288286,1746711037534,-390.5069289,0.00011209,2]
[360288287,1746711037544,-500.0,0.00011209,2]
[360288288,1746711037555,-467.90340474,0.00011209,2]
[360288289,1746711037565,-298.95,0.00011232,2]
[360288290,1746711037575,-289.42,0.00011232,2]
[360288291,1746711037585,-197.57,0.00011232,2]
[360288292,1746711037595,-545.54,0.00011232,2]
[360288293,1746711037605,-173.9,0.00011232,2]
[360288294,1746711037614,-232.14,0.00011232,2]
[360288295,1746711037624,-400.0,0.00011232,2]
[360288296,1746711037633,-438.67,0.00011232,2]
[360288297,1746711037643,-267.34,0.00011232,2]
[360288298,1746711037652,-400.0,0.00011232,2]
[360288299,1746711037662,-383.94,0.00011232,2]
[360288300,1746711037672,-400.0,0.00011232,2]
[360288301,1746711037681,-349.24,0.00011232,2]
[360288302,1746711037693,-400.0,0.00011232,2]
[360288303,1746711037702,-400.0,0.00011232,2]
[360288304,1746711037713,-397.40704715,0.00011232,2]
[360288315,1746711038545,-467.84332344,0.00010799,2]
[360288316,1746711038556,-32.15667656,0.00010799,2]
[360288317,1746711038565,-281.29553285,0.00010799,2]
[360288319,1746711038574,-350.78806868,0.00010799,2]
[360288321,1746711038583,-133.84295285,0.00011232,2]
[360288322,1746711038594,-234.21,0.00011232,2]
[360288323,1746711038603,-400.0,0.00011232,2]
[360288324,1746711038612,-379.62,0.00011232,2]
[360288325,1746711038621,-400.0,0.00011232,2]
[360288326,1746711038630,-488.55,0.00011232,2]
[360288327,1746711038639,-187.57,0.00011232,2]
[360288328,1746711038649,-241.58,0.00011232,2]
[360288329,1746711038658,-400.0,0.00011232,2]
[360288330,1746711038667,-253.25,0.00011232,2]
[360288331,1746711038677,-400.0,0.00011232,2]
[360288332,1746711038686,-400.0,0.00011232,2]
[360288333,1746711038695,-242.18,0.00011232,2]
[360288334,1746711038705,-400.0,0.00011232,2]
[360288335,1746711038714,-400.0,0.00011232,2]
[360288336,1746711038723,-150.38823328,0.00011232,2]
[360288337,1746711038733,-400.0,0.00011232,2]
[360288338,1746711038743,-223.14,0.00011232,2]
[360288339,1746711038752,-477.17149581,0.00011232,2]
[360288340,1746711038762,-359.68,0.00011232,2]
[360288341,1746711038772,-400.0,0.00011232,2]
[360288342,1746711038782,-400.0,0.00011232,2]
[360288343,1746711038792,-400.0,0.00011232,2]
[360288344,1746711038802,-400.0,0.00011232,2]
[360288345,1746711038812,-400.0,0.00011232,2]
[360288346,1746711038821,-400.0,0.00011232,2]
[360288347,1746711038831,-400.0,0.00011232,2]
[360288348,1746711038840,-400.0,0.00011232,2]
[360288349,1746711038849,-400.0,0.00011232,2]
[360288350,1746711038859,-400.0,0.00011232,2]
[360288351,1746711038870,-400.0,0.00011232,2]
[360288352,1746711038879,-400.0,0.00011232,2]
[360288353,1746711038888,-245.34,0.00011232,2]
[360288354,1746711038898,-400.0,0.00011232,2]
[360288355,1746711038907,-400.0,0.00011232,2]
[360288356,1746711038917,-187.04,0.00011232,2]
[360288357,1746711038927,-499.36,0.00011232,2]
[360288358,1746711038940,-400.0,0.00011232,2]
[360288359,1746711038949,-400.0,0.00011232,2]
[360288360,1746711038958,-400.0,0.00011232,2]
[360288361,1746711038968,-400.0,0.00011232,2]
[360288362,1746711038978,-212.10144473,0.00011457,2]
[360288363,1746711038987,-160.0,0.00011457,2]
[360288364,1746711038997,-160.0,0.00011457,2]
[360288365,1746711039007,-160.0,0.00011457,2]
[360288366,1746711039016,-160.0,0.00011457,2]
[360288367,1746711039026,-12615.23506105,0.00011457,2]
[360288368,1746711039036,-160.0,0.00011457,2]
[360288369,1746711039046,-422.07246323,0.00011457,2]
[360288370,1746711039055,-842.21467215,0.00011457,2]
[360288371,1746711039065,-160.0,0.00011457,2]
[360288372,1746711039074,-160.0,0.00011457,2]
[360288373,1746711039084,-400.0,0.00011506,2]
[360288374,1746711039094,-400.0,0.00011506,2]
[360288375,1746711039103,-400.0,0.00011506,2]
[360288376,1746711039113,-400.0,0.00011506,2]
[360288377,1746711039122,-400.0,0.00011506,2]
[360288378,1746711039132,-400.0,0.00011506,2]
[360288379,1746711039141,-400.0,0.00011506,2]
[360288380,1746711039150,-314.94,0.00011506,2]
[360288381,1746711039161,-465.1,0.00011506,2]
[360288382,1746711039172,-400.0,0.00011506,2]
[360288383,1746711039182,-400.0,0.00011506,2]
[360288384,1746711039193,-400.0,0.00011506,2]
[360288385,1746711039203,-400.0,0.00011506,2]
[360288386,1746711039214,-346.74,0.00011506,2]
[360288387,1746711039225,-400.0,0.00011506,2]
[360288388,1746711039235,-235.24,0.00011506,2]
[360288389,1746711039246,-358.83650051,0.00011506,2]
[360288390,1746711039255,-400.0,0.00011506,2]
[360288391,1746711039265,-400.0,0.00011506,2]
[360288392,1746711039276,-400.0,0.00011506,2]
[360288393,1746711039285,-273.89,0.00011506,2]
[360288394,1746711039294,-400.0,0.00011506,2]
[360288395,1746711039304,-406.23,0.00011506,2]
[360288396,1746711039315,-400.0,0.00011506,2]
[360288397,1746711039325,-400.0,0.00011506,2]
[360288398,1746711039335,-400.0,0.00011506,2]
[360288399,1746711039344,-200.98,0.00011506,2]
[360288400,1746711039355,-400.0,0.00011506,2]
[360288401,1746711039364,-400.0,0.00011506,2]
[360288402,1746711039373,-400.0,0.0001178,2]
[360288403,1746711039382,-400.0,0.0001178,2]
[360288404,1746711039392,-151.95,0.0001178,2]
[360288405,1746711039403,-187.17,0.0001178,2]
[360288406,1746711039414,-158.5,0.0001178,2]
[360288407,1746711039424,-385.75,0.0001178,2]
[360288408,1746711039434,-400.0,0.0001178,2]
[360288409,1746711039445,-400.0,0.0001178,2]
[360288410,1746711039454,-400.0,0.0001178,2]
[360288411,1746711039464,-400.0,0.0001178,2]
[360288412,1746711039474,-400.0,0.0001178,2]
[360288413,1746711039486,-400.0,0.0001178,2]
[360288414,1746711039497,-400.0,0.0001178,2]
[360288415,1746711039506,-400.0,0.0001178,2]
[360288416,1746711039516,-400.0,0.0001178,2]
[360288417,1746711039525,-400.0,0.0001178,2]
[360288418,1746711039535,-334.57,0.0001178,2]
[360288419,1746711039544,-442.24,0.0001178,2]
[360288420,1746711039554,-400.0,0.0001178,2]
[360288421,1746711039563,-400.0,0.0001178,2]
[360288422,1746711039573,-400.0,0.0001178,2]
[360288423,1746711039584,-420.0,0.00011869,2]
[360288424,1746711039594,-220.0,0.00011869,2]
[360288425,1746711039604,-420.0,0.00011869,2]
[360288426,1746711039615,-1072.0,0.00011879,2]
[360288427,1746711039624,-155.30124122,0.00011907,2]
[360288428,1746711039634,-400.0,0.00012054,2]
[360288429,1746711039646,-400.0,0.00012054,2]
[360288430,1746711039655,-400.0,0.00012054,2]
[360288431,1746711039665,-300.63,0.00012054,2]
[360288432,1746711039675,-400.0,0.00012054,2]
[360288433,1746711039685,-193.55,0.00012054,2]
[360288434,1746711039694,-400.0,0.00012054,2]
[360288435,1746711039704,-400.0,0.00012054,2]
[360288436,1746711039713,-400.0,0.00012054,2]
[360288437,1746711039722,-333.42,0.00012054,2]
[360288438,1746711039732,-400.0,0.00012054,2]
[360288439,1746711039742,-400.0,0.00012054,2]
[360288440,1746711039755,-255.08,0.00012054,2]
[360288441,1746711039765,-400.0,0.00012054,2]
[360288442,1746711039776,-400.0,0.00012054,2]
[360288443,1746711039786,-2240.0,0.00012268,2]
[360288444,1746711039795,-708.0,0.00012268,2]
[360288445,1746711039804,-404.0,0.00012268,2]
[360288446,1746711039813,-400.0,0.00012328,2]
[360288447,1746711039822,-400.0,0.00012328,2]
[360288448,1746711039832,-203.27,0.00012328,2]
[360288449,1746711039841,-189.23,0.00012328,2]
[360288450,1746711039851,-400.0,0.00012328,2]
[360288451,1746711039861,-400.0,0.00012328,2]
[360288452,1746711039870,-540.34,0.00012328,2]
[360288453,1746711039880,-369.59,0.00012328,2]
[360288454,1746711039889,-400.0,0.00012328,2]
[360288455,1746711039899,-400.0,0.00012328,2]
[360288456,1746711039908,-400.0,0.00012328,2]
[360288457,1746711039918,-615.3,0.00012329,2]
[360288458,1746711039927,-6473.50248073,0.000124,2]
[360288459,1746711039940,-6473.50248064,0.000124,2]
[360288460,1746711039950,-6473.50248064,0.00012521,2]
[360288461,1746711039959,-400.0,0.00012602,2]
[360288462,1746711039968,-400.0,0.00012602,2]
[360288463,1746711039980,-400.0,0.00012602,2]
[360288464,1746711039991,-174.62,0.00012602,2]
[360288465,1746711040001,-400.0,0.00012602,2]
[360288466,1746711040015,-400.0,0.00012602,2]
[360288467,1746711040027,-400.0,0.00012602,2]
[360288468,1746711040042,-3282.26,0.00012746,2]
[360288470,1746711040055,-6473.50248064,0.00012831,2]
[360288471,1746711040068,-400.0,0.00012876,2]
[360288472,1746711040081,-397.59,0.00012876,2]
[360288473,1746711040091,-502.96,0.00012876,2]
[360288474,1746711040102,-400.0,0.00012876,2]
[360288477,1746711040115,-400.0,0.00012876,2]
[360288479,1746711040127,-400.0,0.00012876,2]
[360288481,1746711040138,-265.50208696,0.000129,2]
[360288482,1746711040151,-265.50208696,0.000129,2]
[360288483,1746711040162,-187.0,0.00013046,2]
[360288484,1746711040174,-6473.50248064,0.00013141,2]
[360288485,1746711040186,-400.0,0.0001315,2]
[360288486,1746711040197,-400.0,0.0001315,2]
[360288487,1746711040215,-400.0,0.0001315,2]
[360288488,1746711040228,-400.0,0.0001315,2]
[360288489,1746711040239,-2961.11,0.000133,2]
[360288490,1746711040252,-639.0,0.000133,2]
[360288491,1746711040263,-265.50208696,0.00013393,2]
[360288492,1746711040275,-400.0,0.00013424,2]
[360288493,1746711040286,-400.0,0.00013424,2]
[360288494,1746711040297,-267.24,0.00013424,2]
[360288495,1746711040309,-400.0,0.00013424,2]
[360288496,1746711040321,-6473.50248064,0.00013452,2]
[360288497,1746711040333,-92.35748147,0.0001351,2]
[360288498,1746711040349,-486.58033019,0.0001351,2]
[360288499,1746711040360,-2000.0,0.000136,2]
[360288500,1746711040370,-73589.97,0.000136,2]
[360288501,1746711040380,-151.0,0.000136,2]
[360288502,1746711040390,-113210.27693521,0.00013626,2]
[360288503,1746711040405,-223085.89757974,0.00013626,2]
[360288504,1746711040416,-1200.4451198,0.0001363,2]